fUSD/lending_fUSD_20250906
["ID","MTS","AMOUNT","RATE_DAILY","PERIOD"]
[383906954,1757171479752,-400.0,0.00036164,8]
[383906955,1757171479762,-400.0,0.00036164,8]
[383906956,1757171479771,-400.0,0.00036164,8]
[383906957,1757171479781,-400.0,0.00036164,8]
[383906958,1757171479791,-400.0,0.00036164,8]
[383906959,1757171479801,-400.0,0.00036164,8]
[383906960,1757171479810,-400.0,0.00036164,8]
[383906961,1757171479820,-400.0,0.00036164,8]
[383906962,1757171479830,-400.0,0.00036164,8]
[383906963,1757171479840,-474.84,0.00036164,8]
[383906964,1757171479850,-400.0,0.00036164,8]
[383906965,1757171479859,-400.0,0.00036164,8]
[383906966,1757171479869,-400.0,0.00036164,8]
[383906967,1757171479879,-402.00549496,0.00036164,8]
[383906968,1757171479888,-400.0,0.00036164,8]
[383906969,1757171479898,-567.14,0.00036164,8]
[383906970,1757171479908,-400.0,0.00036164,8]
[383906971,1757171479917,-400.0,0.00036164,8]
[383906972,1757171479927,-400.0,0.00036164,8]
[383906973,1757171479936,-400.0,0.00036164,8]
[383906974,1757171479946,-400.0,0.00036164,8]
[383906975,1757171479956,-567.78,0.00036164,8]
[383906976,1757171479966,-400.0,0.00036164,8]
[383906977,1757171479975,-400.0,0.00036164,8]
[383906978,1757171479985,-400.0,0.00036164,8]
[383906979,1757171479995,-400.0,0.00036164,8]
[383906980,1757171480004,-452.26,0.00036164,8]
[383906981,1757171480015,-400.0,0.00036164,8]
[383906982,1757171480024,-400.0,0.00036164,8]
[383906983,1757171480035,-283.97834615,0.00036164,8]
[383906984,1757171480046,-400.0,0.00036164,8]
[383906985,1757171480055,-400.0,0.00036164,8]
[383906986,1757171480065,-408.29,0.00036164,8]
[383906987,1757171480075,-400.0,0.00036164,8]
[383906988,1757171480086,-1289.31,0.00036164,8]
[383906989,1757171480096,-500.0,0.00036164,8]
[383906990,1757171480106,-440.59,0.00036164,8]
[383906991,1757171480115,-400.0,0.00036164,8]
[383906992,1757171480126,-400.0,0.00036164,8]
[383906993,1757171480136,-580.24,0.00036164,8]
[383906994,1757171480146,-661.4,0.00036164,8]
[383906995,1757171480156,-408.25,0.00036164,8]
[383906996,1757171480168,-428.75,0.00036164,8]
[383906997,1757171480176,-400.0,0.00036164,8]
[383906998,1757171480185,-400.0,0.00036164,8]
[383906999,1757171480193,-400.0,0.00036164,8]
[383907000,1757171480202,-400.0,0.00036164,8]
[383907001,1757171480210,-400.0,0.00036164,8]
[383907002,1757171480220,-400.0,0.00036164,8]
[383907003,1757171480229,-400.0,0.00036164,8]
[383907004,1757171480240,-400.0,0.00036164,8]
[383907005,1757171480250,-400.0,0.00036164,8]
[383907006,1757171480260,-400.0,0.00036164,8]
[383907007,1757171480270,-400.0,0.00036164,8]
[383907008,1757171480280,-400.0,0.00036164,8]
[383907009,1757171480290,-400.0,0.00036164,8]
[383907010,1757171480300,-400.0,0.00036164,8]
[383907011,1757171480310,-400.0,0.00036164,8]
[383907012,1757171480320,-400.0,0.00036164,8]
[383907013,1757171480329,-400.0,0.00036164,8]
[383907014,1757171480338,-508.29,0.00036164,8]
[383907015,1757171480348,-400.0,0.00036164,8]
[383907016,1757171480358,-400.0,0.00036164,8]
[383907017,1757171480367,-400.0,0.00036164,8]
[383907018,1757171480377,-400.0,0.00036164,8]
[383907019,1757171480387,-400.0,0.00036164,8]
[383907020,1757171480396,-400.0,0.00036164,8]
[383907021,1757171480404,-400.0,0.00036164,8]
[383907022,1757171480413,-6447.51,0.00036164,5]
[383907023,1757171480422,-400.0,0.00036164,8]
[383907024,1757171480430,-400.0,0.00036164,8]
[383907025,1757171480439,-430.2,0.00036164,8]
[383907026,1757171480449,-526.9,0.00036164,8]
[383907027,1757171480458,-400.0,0.00036164,8]
[383907028,1757171480467,-400.0,0.00036164,8]
[383907029,1757171480476,-400.0,0.00036164,8]
[383907030,1757171480485,-541.21,0.00036164,8]
[383907031,1757171480495,-400.0,0.00036164,8]
[383907032,1757171480504,-662.69,0.00036164,8]
[383907033,1757171480514,-400.0,0.00036164,8]
[383907034,1757171480523,-400.0,0.00036164,8]
[383907035,1757171480534,-400.0,0.00036164,8]
[383907036,1757171480550,-580.33,0.00036164,8]
[383907037,1757171480559,-402.63829343,0.00036164,8]
[383907038,1757171480568,-400.0,0.00036164,8]
[383907039,1757171480577,-513.04,0.00036164,8]
[383907040,1757171480588,-400.0,0.00036164,8]
[383907041,1757171480597,-400.0,0.00036164,8]
[383907042,1757171480605,-400.0,0.00036164,8]
[383907043,1757171480615,-400.0,0.00036164,8]
[383907044,1757171480624,-745.7,0.00036164,8]
[383907045,1757171480634,-400.0,0.00036164,8]
[383907046,1757171480644,-546.38,0.00036164,8]
[383907047,1757171480653,-405.87448368,0.00036164,8]
[383907048,1757171480662,-400.0,0.00036164,8]
[383907049,1757171480671,-400.0,0.00036164,8]
[383907050,1757171480681,-400.0,0.00036164,8]
[383907051,1757171480690,-400.0,0.00036164,8]
[383907052,1757171480699,-424.59,0.00036164,8]
[383907053,1757171480708,-400.0,0.00036164,8]
[383907054,1757171480718,-400.0,0.00036164,8]
[383907055,1757171480727,-400.0,0.00036164,8]
[383907056,1757171480737,-400.0,0.00036164,8]
[383907057,1757171480746,-400.0,0.00036164,8]
[383907058,1757171480755,-400.0,0.00036164,8]
[383907059,1757171480765,-494.65,0.00036164,8]
[383907060,1757171480774,-400.0,0.00036164,8]
[383907061,1757171480784,-400.0,0.00036164,8]
[383907062,1757171480794,-400.0,0.00036164,8]
[383907063,1757171480803,-423.02,0.00036164,8]
[383907064,1757171480813,-400.0,0.00036164,8]
[383907065,1757171480823,-400.0,0.00036164,8]
[383907066,1757171480834,-485.39,0.00036164,8]
[383907067,1757171480843,-401.98666354,0.00036164,8]
[383907068,1757171480853,-400.0,0.00036164,8]
[383907069,1757171480863,-400.0,0.00036164,8]
[383907070,1757171480872,-400.0,0.00036164,8]
[383907071,1757171480882,-234.89315869,0.00036164,8]
[383907072,1757171480891,-400.0,0.00036164,8]
[383907073,1757171480901,-500.0,0.00036164,8]
[383907074,1757171480911,-825.62,0.00036164,8]
[383907075,1757171480920,-404.53111656,0.00036164,8]
[383907076,1757171480930,-400.0,0.00036164,8]
[383907077,1757171480941,-526.47,0.00036164,8]
[383907078,1757171480950,-400.0,0.00036164,8]
[383907079,1757171480960,-400.0,0.00036164,8]
[383907080,1757171480969,-400.0,0.00036164,8]
[383907081,1757171480979,-400.0,0.00036164,8]
[383907082,1757171480989,-400.0,0.00036164,8]
[383907083,1757171480999,-400.0,0.00036164,8]
[383907084,1757171481009,-400.0,0.00036164,8]
[383907085,1757171481019,-400.0,0.00036164,8]
[383907086,1757171481030,-516.31,0.00036164,8]
[383907087,1757171481039,-400.0,0.00036164,8]
[383907088,1757171481049,-403.26,0.00036164,8]
[383907089,1757171481059,-400.0,0.00036164,8]
[383907090,1757171481068,-443.32,0.00036164,8]
[383907091,1757171481078,-497.89,0.00036164,8]
[383907092,1757171481088,-442.5934437,0.00036164,8]
[383907093,1757171481098,-400.0,0.00036164,7]
[383907094,1757171481107,-625.5,0.00036164,8]
[383907095,1757171481117,-305.55472469,0.00036164,8]
[383907096,1757171481126,-400.0,0.00036164,8]
[383907097,1757171481135,-501.87,0.00036164,8]
[383907098,1757171481145,-400.0,0.00036164,8]
[383907099,1757171481155,-400.0,0.00036164,8]
[383907100,1757171481164,-400.0,0.00036164,8]
[383907101,1757171481355,-400.0,0.00036164,8]
[383907102,1757171481366,-622.59,0.00036164,8]
[383907103,1757171481375,-400.0,0.00036164,8]
[383907104,1757171481384,-400.0,0.00036164,8]
[383907105,1757171481394,-400.0,0.00036164,8]
[383907106,1757171481403,-704.99,0.00036164,8]
[383907107,1757171481412,-810.84,0.00036164,8]
[383907108,1757171481422,-438.33,0.00036164,8]
[383907109,1757171481433,-400.0,0.00036164,8]
[383907110,1757171481443,-400.0,0.00036164,8]
[383907111,1757171481453,-400.0,0.00036164,8]
[383907112,1757171481463,-400.0,0.00036164,8]
[383907113,1757171481472,-409.9,0.00036164,8]
[383907114,1757171481481,-763.55,0.00036164,8]
[383907115,1757171481491,-400.0,0.00036164,8]
[383907116,1757171481500,-400.0,0.00036164,8]
[383907117,1757171481511,-400.0,0.00036164,8]
[383907118,1757171481521,-400.0,0.00036164,8]
[383907119,1757171481531,-400.0,0.00036164,8]
[383907120,1757171481544,-400.0,0.00036164,8]
[383907121,1757171481554,-400.0,0.00036164,8]
[383907122,1757171481563,-400.0,0.00036164,8]
[383907123,1757171481573,-400.0,0.00036164,8]
[383907124,1757171481583,-400.0,0.00036164,8]
[383907125,1757171481593,-505.84,0.00036164,8]
[383907126,1757171481603,-469.66,0.00036164,8]
[383907127,1757171481615,-400.0,0.00036164,8]
[383907128,1757171481623,-400.0,0.00036164,8]
[383907129,1757171481631,-400.0,0.00036164,8]
[383907130,1757171481639,-492.82,0.00036164,8]
[383907131,1757171481649,-400.0,0.00036164,8]
[383907132,1757171481658,-432.82,0.00036164,8]
[383907133,1757171481667,-400.0,0.00036164,8]
[383907134,1757171481676,-400.0,0.00036164,8]
[383907135,1757171481685,-400.0,0.00036164,8]
[383907136,1757171481694,-400.0,0.00036164,8]
[383907137,1757171481702,-708.31,0.00036164,8]
[383907138,1757171481710,-400.0,0.00036164,8]
[383907139,1757171481719,-447.54,0.00036164,8]
[383907140,1757171481728,-405.93575925,0.00036164,8]
[383907141,1757171481737,-400.0,0.00036164,8]
[383907142,1757171481746,-902.07,0.00036164,8]
[383907143,1757171481754,-488.65,0.00036164,8]
[383907144,1757171481763,-400.0,0.00036164,8]
[383907145,1757171481772,-400.0,0.00036164,8]
[383907146,1757171481780,-414.13,0.00036164,8]
[383907147,1757171481789,-400.0,0.00036164,8]
[383907148,1757171481798,-442.60206615,0.00036164,8]
[383907149,1757171481806,-400.0,0.00036164,8]
[383907150,1757171481815,-403.26,0.00036164,8]
[383907151,1757171481824,-697.99,0.00036164,8]
[383907152,1757171481834,-400.0,0.00036164,8]
[383907153,1757171481843,-406.54663514,0.00036164,8]
[383907154,1757171481852,-400.0,0.00036164,8]
[383907155,1757171481862,-400.0,0.00036164,8]
[383907156,1757171481871,-400.0,0.00036164,8]
[383907157,1757171481880,-400.0,0.00036164,8]
[383907158,1757171481890,-400.0,0.00036164,8]
[383907159,1757171481899,-762.44,0.00036164,8]
[383907160,1757171481909,-400.0,0.00036164,8]
[383907161,1757171481919,-400.0,0.00036164,8]
[383907162,1757171481928,-400.0,0.00036164,8]
[383907163,1757171481937,-439.57,0.00036164,8]
[383907164,1757171481947,-400.0,0.00036164,8]
[383907165,1757171481956,-400.0,0.00036164,8]
[383907166,1757171481966,-521.63382537,0.00036164,8]
[383907167,1757171481975,-536.59,0.00036164,8]
[383907168,1757171481984,-400.0,0.00036164,8]
[383907169,1757171481993,-400.0,0.00036164,8]
[383907170,1757171482003,-400.0,0.00036164,8]
[383907171,1757171482013,-419.47390943,0.00036164,8]
[383907172,1757171482023,-400.0,0.00036164,8]
[383907173,1757171482032,-400.0,0.00036164,8]
[383907174,1757171482042,-488.95,0.00036164,8]
[383907175,1757171482052,-400.0,0.00036164,8]
[383907176,1757171482061,-300.0,0.00036164,8]
[383907177,1757171482070,-473.09,0.00036164,8]
[383907178,1757171482080,-400.0,0.00036164,8]
[383907179,1757171482090,-400.0,0.00036164,8]
[383907180,1757171482099,-400.0,0.00036164,8]
[383907181,1757171482109,-400.0,0.00036164,8]
[383907182,1757171482119,-400.0,0.00036164,8]
[383907183,1757171482128,-400.0,0.00036164,8]
[383907184,1757171482137,-400.0,0.00036164,8]
[383907185,1757171482147,-400.0,0.00036164,8]
[383907186,1757171482157,-489.25,0.00036164,8]
[383907187,1757171482166,-400.0,0.00036164,8]
[383907188,1757171482176,-400.0,0.00036164,8]
[383907189,1757171482186,-400.0,0.00036164,8]
[383907190,1757171482195,-400.0,0.00036164,8]
[383907191,1757171482205,-400.0,0.00036164,8]
[383907192,1757171482215,-400.0,0.00036164,8]
[383907193,1757171482224,-400.0,0.00036164,8]
[383907194,1757171482234,-402.72579252,0.00036164,8]
[383907195,1757171482243,-764.96,0.00036164,8]
[383907196,1757171482253,-400.0,0.00036164,8]
[383907197,1757171482262,-400.0,0.00036164,8]
[383907198,1757171482272,-406.21,0.00036164,8]
[383907199,1757171482281,-400.0,0.00036164,8]
[383907200,1757171482291,-404.67706632,0.00036164,8]
[383907201,1757171482300,-409.28155023,0.00036164,8]
[383907202,1757171482310,-400.0,0.00036164,8]
[383907203,1757171482319,-400.0,0.00036164,8]
[383907204,1757171482329,-597.36,0.00036164,8]
[383907205,1757171482339,-400.0,0.00036164,8]
[383907206,1757171482349,-413.64,0.00036164,8]
[383907207,1757171482359,-400.0,0.00036164,8]
[383907208,1757171482368,-400.0,0.00036164,8]
[383907209,1757171482377,-400.0,0.00036164,8]
[383907210,1757171482387,-400.0,0.00036164,8]
[383907211,1757171482396,-400.0,0.00036164,8]
[383907212,1757171482406,-510.83,0.00036164,8]
[383907213,1757171482416,-498.18,0.00036164,8]
[383907214,1757171482425,-400.0,0.00036164,8]
[383907215,1757171482435,-400.0,0.00036164,8]
[383907216,1757171482444,-400.0,0.00036164,8]
[383907217,1757171482453,-407.94,0.00036164,8]
[383907218,1757171482463,-518.22,0.00036164,8]
[383907219,1757171482472,-400.0,0.00036164,8]
[383907220,1757171482482,-400.0,0.00036164,8]
[383907221,1757171482491,-400.0,0.00036164,8]
[383907222,1757171482509,-400.0,0.00036164,8]
[383907223,1757171482529,-400.0,0.00036164,8]
[383907224,1757171482549,-400.0,0.00036164,8]
[383907225,1757171482569,-484.18,0.00036164,8]
[383907226,1757171482587,-461.56,0.00036164,8]
[383907227,1757171482604,-400.0,0.00036164,8]
[383907228,1757171482624,-523.48,0.00036164,8]
[383907229,1757171482645,-400.0,0.00036164,8]
[383907230,1757171482667,-400.0,0.00036164,8]
[383907231,1757171482684,-400.0,0.00036164,8]
[383907232,1757171482703,-400.0,0.00036164,8]
[383907233,1757171482720,-400.0,0.00036164,8]
[383907234,1757171482734,-455.8,0.00036164,8]
[383907235,1757171482754,-400.0,0.00036164,8]
[383907236,1757171482768,-400.0,0.00036164,8]
[383907237,1757171482786,-400.0,0.00036164,8]
[383907238,1757171482801,-451.52470888,0.00036164,8]
[383907239,1757171482817,-400.0,0.00036164,8]
[383907240,1757171482834,-400.0,0.00036164,8]
[383907241,1757171482848,-400.0,0.00036164,8]
[383907242,1757171482863,-771.26,0.00036164,8]
[383907243,1757171482879,-400.0,0.00036164,8]
[383907244,1757171482895,-400.0,0.00036164,8]
[383907245,1757171482912,-529.03,0.00036164,8]
[383907246,1757171482928,-400.0,0.00036164,8]
[383907247,1757171482944,-400.0,0.00036164,8]
[383907248,1757171482962,-400.0,0.00036164,8]
[383907249,1757171482977,-400.0,0.00036164,8]
[383907250,1757171482994,-400.0,0.00036164,8]
[383907251,1757171483008,-400.0,0.00036164,8]
[383907252,1757171483024,-488.2,0.00036164,8]
[383907253,1757171483040,-400.0,0.00036164,8]
[383907254,1757171483057,-400.0,0.00036164,8]
[383907255,1757171483073,-400.0,0.00036164,8]
[383907256,1757171483089,-400.0,0.00036164,8]
[383907257,1757171483104,-400.0,0.00036164,8]
[383907258,1757171483120,-400.0,0.00036164,8]
[383907259,1757171483135,-400.0,0.00036164,8]
[383907260,1757171483151,-400.0,0.00036164,8]
[383907261,1757171483167,-514.33,0.00036164,8]
[383907262,1757171483183,-400.0,0.00036164,8]
[383907263,1757171483198,-400.0,0.00036164,8]
[383907264,1757171483214,-400.0,0.00036164,8]
[383907265,1757171483229,-446.5,0.00036164,8]
[383907266,1757171483245,-957.34,0.00036164,8]
[383907267,1757171483262,-400.0,0.00036164,8]
[383907268,1757171483277,-2661.89,0.00036164,8]
[383907269,1757171483293,-400.0,0.00036164,8]
[383907270,1757171483309,-1000.0,0.00036164,8]
[383907271,1757171483325,-400.0,0.00036164,8]
[383907272,1757171483341,-400.0,0.00036164,8]
[383907273,1757171483355,-400.0,0.00036164,8]
[383907274,1757171483371,-460.64680961,0.00036164,8]
[383907275,1757171483386,-407.59420528,0.00036164,8]
[383907276,1757171483401,-443.95,0.00036164,8]
[383907277,1757171483417,-400.0,0.00036164,8]
[383907278,1757171483439,-402.17858198,0.00036164,8]
[383907279,1757171483454,-400.0,0.00036164,8]
[383907280,1757171483470,-522.75,0.00036164,8]
[383907281,1757171483486,-400.0,0.00036164,8]
[383907282,1757171483503,-400.0,0.00036164,8]
[383907283,1757171483519,-400.0,0.00036164,8]
[383907284,1757171483535,-1080.71,0.00036164,8]
[383907285,1757171483551,-400.0,0.00036164,8]
[383907286,1757171483567,-631.51,0.00036164,8]
[383907287,1757171483585,-400.0,0.00036164,8]
[383907288,1757171483599,-423.77,0.00036164,8]
[383907289,1757171483617,-665.38,0.00036164,8]
[383907290,1757171483633,-438.86,0.00036164,8]
[383907291,1757171483649,-400.0,0.00036164,8]
[383907292,1757171483667,-400.0,0.00036164,8]
[383907293,1757171483683,-400.0,0.00036164,8]
[383907294,1757171483699,-400.0,0.00036164,8]
[383907295,1757171483714,-400.0,0.00036164,8]
[383907296,1757171483731,-400.0,0.00036164,8]
[383907297,1757171483746,-400.0,0.00036164,8]
[383907298,1757171483761,-807.77,0.00036164,8]
[383907299,1757171483776,-400.0,0.00036164,8]
[383907300,1757171483790,-400.0,0.00036164,8]
[383907301,1757171483805,-1470.18,0.00036164,8]
[383907302,1757171483820,-400.0,0.00036164,8]
[383907303,1757171483835,-400.0,0.00036164,8]
[383907304,1757171483850,-400.0,0.00036164,8]
[383907305,1757171483866,-481.87,0.00036164,8]
[383907306,1757171483883,-486.75,0.00036164,8]
[383907307,1757171483898,-4237.61,0.00036164,8]
[383907308,1757171483915,-245.39316565,0.00036164,8]
[383907309,1757171483932,-400.0,0.00036164,8]
[383907310,1757171483947,-1400.7,0.00036164,8]
[383907311,1757171483963,-400.0,0.00036164,8]
[383907312,1757171483979,-400.0,0.00036164,8]
[383907313,1757171483995,-400.0,0.00036164,8]
[383907314,1757171484011,-666.63,0.00036164,8]
[383907315,1757171484026,-400.0,0.00036164,8]
[383907316,1757171484042,-3913.69,0.00036164,8]
[383907317,1757171484056,-400.0,0.00036164,8]
[383907318,1757171484072,-400.0,0.00036164,8]
[383907319,1757171484088,-400.0,0.00036164,8]
[383907320,1757171484104,-400.0,0.00036164,8]
[383907321,1757171484120,-558.61,0.00036164,8]
[383907322,1757171484135,-857.87,0.00036164,8]
[383907323,1757171484150,-400.0,0.00036164,8]
[383907324,1757171484166,-400.0,0.00036164,8]
[383907325,1757171484181,-491.22,0.00036164,8]
[383907326,1757171484197,-523.32,0.00036164,8]
[383907327,1757171484212,-1022.53,0.00036164,8]
[383907328,1757171484227,-400.0,0.00036164,8]
[383907329,1757171484242,-400.0,0.00036164,8]
[383907330,1757171484258,-440.83,0.00036164,8]
[383907331,1757171484273,-400.0,0.00036164,8]
[383907332,1757171484289,-527.91,0.00036164,8]
[383907333,1757171484304,-613.93,0.00036164,8]
[383907334,1757171484320,-400.0,0.00036164,8]
[383907335,1757171484335,-400.0,0.00036164,8]
[383907336,1757171484351,-400.0,0.00036164,8]
[383907337,1757171484365,-400.0,0.00036164,8]
[383907338,1757171484380,-400.0,0.00036164,8]
[383907339,1757171484396,-400.0,0.00036164,8]
[383907340,1757171484410,-819.34,0.00036164,8]
[383907341,1757171484665,-400.0,0.00036164,8]
[383907342,1757171484676,-686.88,0.00036164,8]
[383907343,1757171484686,-400.0,0.00036164,8]
[383907344,1757171484695,-400.0,0.00036164,8]
[383907345,1757171484705,-400.0,0.00036164,8]
[383907346,1757171484714,-454.21,0.00036164,8]
[383907347,1757171484724,-400.0,0.00036164,8]
[383907348,1757171484733,-677.45,0.00036164,8]
[383907349,1757171484743,-525.22,0.00036164,8]
[383907350,1757171484753,-400.0,0.00036164,8]
[383907351,1757171484763,-500.62,0.00036164,8]
[383907352,1757171484772,-400.0,0.00036164,8]
[383907353,1757171484782,-400.0,0.00036164,8]
[383907354,1757171484791,-400.0,0.00036164,8]
[383907355,1757171484801,-400.0,0.00036164,8]
[383907356,1757171484811,-400.0,0.00036164,8]
[383907357,1757171484821,-400.0,0.00036164,8]
[383907358,1757171484830,-400.0,0.00036164,8]
[383907359,1757171484840,-400.0,0.00036164,8]
[383907360,1757171484851,-400.0,0.00036164,7]
[383907361,1757171484860,-400.0,0.00036164,8]
[383907362,1757171484870,-400.0,0.00036164,8]
[383907363,1757171484880,-400.0,0.00036164,8]
[383907364,1757171484890,-400.0,0.00036164,8]
[383907365,1757171484899,-424.76,0.00036164,8]
[383907366,1757171484908,-404.66909887,0.00036164,8]
[383907367,1757171484918,-666.85,0.00036164,8]
[383907368,1757171484928,-400.0,0.00036164,8]
[383907369,1757171484938,-424.8,0.00036164,8]
[383907370,1757171484948,-400.0,0.00036164,8]
[383907371,1757171484957,-400.0,0.00036164,8]
[383907372,1757171484968,-400.0,0.00036164,8]
[383907373,1757171484978,-400.0,0.00036164,8]
[383907374,1757171484987,-534.96,0.00036164,8]
[383907375,1757171484997,-400.0,0.00036164,8]
[383907376,1757171485007,-400.0,0.00036164,8]
[383907377,1757171485017,-241.26269443,0.00036164,8]
[383907378,1757171485027,-400.0,0.00036164,8]
[383907379,1757171485037,-1573.52,0.00036164,8]
[383907380,1757171485047,-470.89265223,0.00036164,8]
[383907381,1757171485057,-2301.18,0.00036164,8]
[383907382,1757171485067,-400.0,0.00036164,8]
[383907383,1757171485076,-400.0,0.00036164,8]
[383907384,1757171485087,-400.0,0.00036164,8]
[383907385,1757171485096,-400.0,0.00036164,8]
[383907386,1757171485106,-400.0,0.00036164,8]
[383907387,1757171485115,-994.18,0.00036164,8]
[383907388,1757171485125,-400.0,0.00036164,8]
[383907389,1757171485135,-400.0,0.00036164,8]
[383907390,1757171485144,-400.0,0.00036164,8]
[383907391,1757171485154,-1335.37,0.00036164,8]
[383907392,1757171485163,-400.0,0.00036164,8]
[383907393,1757171485173,-400.0,0.00036164,8]
[383907394,1757171485182,-400.0,0.00036164,8]
[383907395,1757171485191,-400.0,0.00036164,8]
[383907396,1757171485202,-694.9,0.00036164,8]
[383907397,1757171485211,-400.0,0.00036164,8]
[383907398,1757171485220,-440.97,0.00036164,8]
[383907399,1757171485229,-400.0,0.00036164,8]
[383907400,1757171485239,-448.05,0.00036164,8]
[383907401,1757171485248,-400.0,0.00036164,8]
[383907402,1757171485258,-429.02,0.00036164,8]
[383907403,1757171485268,-400.0,0.00036164,8]
[383907404,1757171485278,-1031.45,0.00036164,8]
[383907405,1757171485287,-400.0,0.00036164,8]
[383907406,1757171485297,-400.0,0.00036164,8]
[383907407,1757171485307,-400.0,0.00036164,8]
[383907408,1757171485316,-400.0,0.00036164,8]
[383907409,1757171485326,-493.53,0.00036164,8]
[383907410,1757171485336,-2599.28,0.00036164,8]
[383907411,1757171485346,-525.12,0.00036164,8]
[383907412,1757171485355,-400.0,0.00036164,8]
[383907413,1757171485365,-518.48,0.00036164,8]
[383907414,1757171485375,-400.0,0.00036164,8]
[383907415,1757171485385,-491.03834706,0.00036164,8]
[383907416,1757171485395,-400.0,0.00036164,8]
[383907417,1757171485406,-400.0,0.00036164,8]
[383907418,1757171485417,-405.35978857,0.00036164,8]
[383907419,1757171485429,-585.16,0.00036164,8]
[383907420,1757171485439,-400.0,0.00036164,8]
[383907421,1757171485449,-400.0,0.00036164,8]
[383907422,1757171485460,-906.65,0.00036164,8]
[383907423,1757171485469,-400.0,0.00036164,8]
[383907424,1757171485480,-400.0,0.00036164,8]
[383907425,1757171485489,-400.0,0.00036164,8]
[383907426,1757171485500,-400.0,0.00036164,8]
[383907427,1757171485510,-400.0,0.00036164,8]
[383907428,1757171485521,-400.0,0.00036164,8]
[383907429,1757171485530,-400.0,0.00036164,8]
[383907430,1757171485543,-400.0,0.00036164,8]
[383907431,1757171485554,-4402.47,0.00036164,8]
[383907432,1757171485564,-327.31193885,0.00036164,8]
[383907433,1757171485573,-1010.34,0.00036164,8]
[383907434,1757171485584,-400.0,0.00036164,8]
[383907435,1757171485593,-504.89,0.00036164,8]
[383907436,1757171485603,-400.0,0.00036164,8]
[383907437,1757171485614,-400.0,0.00036164,8]
[383907438,1757171485624,-400.0,0.00036164,8]
[383907439,1757171485633,-400.0,0.00036164,8]
[383907440,1757171485643,-400.0,0.00036164,8]
[383907441,1757171485652,-8768.83,0.00036164,8]
[383907442,1757171485662,-400.0,0.00036164,8]
[383907443,1757171485671,-400.0,0.00036164,8]
[383907444,1757171485680,-400.0,0.00036164,8]
[383907445,1757171485690,-400.0,0.00036164,8]
[383907446,1757171485700,-400.0,0.00036164,8]
[383907447,1757171485710,-1577.02,0.00036164,8]
[383907448,1757171485719,-400.0,0.00036164,8]
[383907449,1757171485729,-2234.93,0.00036164,8]
[383907450,1757171485739,-516.56,0.00036164,8]
[383907451,1757171485749,-400.0,0.00036164,8]
[383907452,1757171485758,-481.48,0.00036164,8]
[383907453,1757171485768,-410.46394507,0.00036164,8]